[Event "Slovakia Open 2022"]
[Site "Bratislava"]
[Date "2022.10.01"]
[Round "7.12"]
[White "Klabis, Rokas"]
[Black "Babula, Matej"]
[Result "1-0"]
[ECO "B40"]
[WhiteElo "2396"]
[BlackElo "1864"]
[Annotator "TA"]
[PlyCount "63"]
[EventDate "2022.09.30"]
[EventCountry "SVK"]
[SourceTitle "playchess.com"]
[Source "ChessBase"]
[SourceQuality "1"]
[TimeControl "2700+10"]

{[%evp 9,63,11,11,7,14,7,7,0,0,0,0,0,0,0,17,-21,0,-29,-37,-33,-23,-72,-35,-35,-33,-32,-13,-6,-6,-16,0,0,0,-16,101,100,304,313,306,284,535,535,547,550,506,497,1599,762,1875,1133,1168,1065,2248,1977,29998,29999]} 1. e4 {[%emt 0:00:04]} c5 {[%emt 0:00:02]} 2. Nf3 {[%emt 0:00:03]} e6 {[%emt 0:00:02]} 3. d3 {[%emt 0:00:01]} d5 {[%emt 0:00:12]} 4. Nbd2 {[%emt 0:00:02]} d4 {[%emt 0:01:13]} 5. a4 {[%emt 0:00:11]} Nc6 {[%emt 0:00:42]} 6. Nc4 {[%emt 0:00:02] [#] B40: Sicilian: 2...e6, Unusual lines.} Bd6 $146 {[%emt 0:01:16]} ({Predecessor:} 6... Nf6 7. g3 Qc7 8. Bg2 Bd6 9. O-O h6 10. Qe2 e5 11. Nh4 O-O 12. h3 Be6 {1-0 (26) Mataigne,J (1900)-Hucault,C (1612) Europe Echecs INT 2020}) 7. e5 {[%emt 0:01:59]} Bc7 {[%emt 0:00:15]} 8. Qe2 {[%emt 0:00:48] The position is equal.} Nge7 {[%emt 0:01:30]} 9. g3 {[%emt 0:00:14]} b6 {[%emt 0:02:34][%cal Bb7b6,Bb6b5][%mdl 32]} 10. Bg2 {[%emt 0:00:09]} Bb7 {[%emt 0:00:17]} 11. O-O {[%emt 0:00:03]} O-O {[%emt 0:01:36]} 12. h4 {[%emt 0:00:33]} a6 {[%emt 0:02:47]} 13. h5 {[%emt 0:01:04]} h6 $1 {[%emt 0:04:45]} 14. g4 {[%emt 0:01:48]} b5 {[%emt 0:02:49]} 15. Na3 {[%emt 0:01:01]} (15. Ncd2 $11) 15... Nb8 {[%emt 0:03:41]} 16. Bf4 {[%emt 0:05:44]} Bc6 {[%emt 0:01:02]} 17. Bg3 {[%emt 0:01:37]} Nd5 {[%emt 0:03:15]} 18. Nb1 {[%emt 0:04:47][%cal Ba3b1,Bb1d2,Bd2e4][%mdl 32]} Nd7 {[%emt 0:02:11]} 19. Nbd2 {[%emt 0:00:31]} N7b6 {[%emt 0:01:23]} 20. axb5 {[%emt 0:00:19]} axb5 {[%emt 0:00:08]} 21. Ne4 {[%emt 0:00:03]} Na4 {[%emt 0:02:19] [#]} (21... Rxa1 $11 {remains equal.} 22. Rxa1 Nd7) 22. g5 $1 $16 {[%emt 0:02:17] Hoping for gxh6.} Nxb2 $2 {[%emt 0:01:22] A mistake that costs the game.} (22... Kh8 $16 {was necessary.}) 23. gxh6 $18 {[%emt 0:00:09]} gxh6 {[%emt 0:00:46]} 24. Nh2 {[%emt 0:03:36]} ({Weaker is} 24. Rxa8 Qxa8 25. Nf6+ (25. Qd2 Kh7 $11) 25... Nxf6 26. exf6 Kh7 27. Bxc7 Na4 $14) 24... Kh8 $2 {[%emt 0:11:07]} (24... Rxa1 25. Rxa1 Na4 26. Nf6+ Nxf6) 25. Qd2 {[%emt 0:00:20]} Kg7 {[%emt 0:00:21]} 26. Ng4 {[%emt 0:02:20]} Rh8 {[%emt 0:00:16]} 27. Nef6 {[%emt 0:00:21] aiming for Bxd5.} Qe7 {[%emt 0:01:12]} (27... Ba5 $142 28. Qc1 Na4 29. Nxh6 Kf8) 28. Bh4 {[%emt 0:00:25]} (28. Bxd5 $142 Nd1 29. Rxa8 Bxa8 30. Bxa8) 28... Qf8 {[%emt 0:00:15]} 29. Nxd5 {[%emt 0:00:13][%mdl 64] [#] Remove Defender} Bxd5 {[%emt 0:00:10]} 30. Bf6+ {[%emt 0:00:03]} Kh7 {[%emt 0:00:09]} 31. Rxa8 {[%emt 0:00:03][%mdl 64] Deflection} Qxa8 {[%emt 0:00:09]} 32. Qxh6+ {[%emt 0:00:03] Weighted Error Value: White=0.07 (flawless) /Black=0.62} 1-0

[Event "Slovakia Open 2022"]
[Site "Bratislava"]
[Date "2022.10.01"]
[Round "7.13"]
[White "Novosadova, Kristyna"]
[Black "Stevik, Patrik"]
[Result "0-1"]
[ECO "B06"]
[WhiteElo "2151"]
[BlackElo "2148"]
[Annotator "TA"]
[PlyCount "92"]
[EventDate "2022.09.30"]
[EventCountry "SVK"]
[SourceTitle "playchess.com"]
[Source "ChessBase"]
[SourceQuality "1"]
[TimeControl "2700+10"]

{[%evp 9,92,33,52,25,19,29,54,48,65,52,95,36,34,36,43,38,39,31,25,0,0,0,103,72,77,66,71,73,95,98,97,93,104,102,103,95,133,130,130,137,188,200,184,90,94,86,105,35,43,0,15,0,0,0,0,0,0,0,43,5,11,0,0,0,8,0,13,-12,-21,-254,-253,-223,-68,-1345,-1372,-29986,-29987,-29982,-1237,-29981,-4922,-29993,-29980,-29979,-29978]} 1. e4 {[%emt 0:00:07]} g6 {[%emt 0:00:32]} 2. d4 {[%emt 0:00:03]} Bg7 {[%emt 0:00:10]} 3. Nf3 {[%emt 0:00:29]} d6 {[%emt 0:00:00]} 4. Nc3 {[%emt 0:00:05]} a6 {[%emt 0:00:00]} 5. Bc4 {[%emt 0:00:12]} e6 {[%emt 0:00:11]} 6. Bg5 {[%emt 0:00:48] B06: Modern Defence.} Ne7 {[%emt 0:00:03]} 7. Qd2 {[%emt 0:00:49]} b5 {[%emt 0:00:01]} 8. Bd3 {[%emt 0:00:47] [#] White is slightly better.} c5 $146 {[%emt 0:00:53]} ({Predecessor:} 8... h6 9. Be3 Nd7 10. a4 b4 11. Na2 c5 12. c3 bxc3 13. bxc3 cxd4 14. cxd4 Nf6 {0-1 (41) Zelenskaya,A (1739)-Mironenko,G (1975) Bryansk 2019}) 9. dxc5 {[%emt 0:01:31]} dxc5 {[%emt 0:00:18] [#]} 10. e5 {[%emt 0:00:13]} ({White should play} 10. Bh6 $1 $16 {[%cal Rh6g7]} O-O 11. Qe3) 10... Bb7 $14 {[%emt 0:01:51]} 11. Ne4 {[%emt 0:01:08]} Bxe4 {[%emt 0:02:06]} 12. Bxe4 {[%emt 0:00:02]} Qxd2+ {[%emt 0:00:04]} 13. Bxd2 {[%emt 0:03:16] This bishop pair is nice.} Ra7 {[%emt 0:00:51]} 14. O-O-O {[%emt 0:00:42]} (14. a4 $5 {[%cal Ra4b5]} b4 15. O-O-O $14) 14... O-O {[%emt 0:00:49]} 15. Bf4 {[%emt 0:01:32]} Nbc6 {[%emt 0:00:15]} (15... Nd7 $11) 16. Rd6 {[%emt 0:00:32]} Nb4 {[%emt 0:01:16]} 17. c3 {[%emt 0:02:01]} Nbd5 {[%emt 0:00:10]} 18. Bg5 {[%emt 0:00:22]} Rc8 {[%emt 0:04:08]} 19. Bxe7 {[%emt 0:00:38]} Nxe7 {[%emt 0:00:14]} 20. Rhd1 $36 {[%emt 0:00:18][%mdl 2048] White is in control.} Bh6+ {[%emt 0:01:34]} 21. Kb1 {[%emt 0:00:22]} Rcc7 {[%emt 0:02:07] Prevents Rd7.} 22. Rd8+ {[%emt 0:00:17]} Kg7 {[%emt 0:00:10]} 23. g3 {[%emt 0:02:16]} a5 {[%emt 0:02:35]} 24. h4 {[%emt 0:00:48]} f5 {[%emt 0:05:37]} (24... Rc8 $16 {was called for.} 25. R1d7 Rxd7 26. Rxd7 Kf8) 25. exf6+ $18 {[%emt 0:00:59]} Kxf6 {[%emt 0:00:01]} 26. Nh2 {[%emt 0:00:14]} (26. g4 $18 {is more deadly.} Bg7 27. R1d6) 26... Bg7 $16 {[%emt 0:01:06]} 27. R1d3 {[%emt 0:01:53]} Nf5 {[%emt 0:03:08]} 28. Bxf5 {[%emt 0:00:35]} (28. Nf3 $16) 28... gxf5 {[%emt 0:01:01]} 29. f4 {[%emt 0:00:06]} c4 {[%emt 0:01:37]} 30. Rd1 {[%emt 0:00:40]} b4 {[%emt 0:00:48]} 31. Nf3 {[%emt 0:00:33]} bxc3 {[%emt 0:00:28]} 32. bxc3 {[%emt 0:00:02]} Rab7+ {[%emt 0:00:15]} 33. Kc2 {[%emt 0:00:05]} h6 {[%emt 0:04:26]} 34. Ne5 {[%emt 0:02:26]} Ke7 {[%emt 0:00:55] Inhibits Re8+.} 35. Ng6+ {[%emt 0:00:03]} Kf7 {[%emt 0:00:35]} 36. h5 {[%emt 0:00:01]} Bf6 {[%emt 0:01:14]} 37. Rf8+ {[%emt 0:00:40]} Kg7 {[%emt 0:00:10]} 38. Re1 {[%emt 0:00:29]} Rb6 {[%emt 0:01:38] ...Rcb7 is the strong threat.} 39. Ra8 $2 {[%emt 0:05:42]} (39. Re8 $11 {and White has nothing to worry.} Rcb7 40. R1xe6 Rb2+ 41. Kc1) 39... Rcb7 $19 {[%emt 0:00:37] And now ...Rb2+ would win.} 40. Kd2 {[%emt 0:02:23]} Rd6+ $2 {[%emt 0:01:38]} (40... Rb2+ $19 41. Ke3 Bxc3) 41. Ke2 $2 {[%emt 0:00:46][%mdl 8192]} (41. Kc2 $15) 41... Bxc3 {[%emt 0:00:28] ( -> ...Rb2+)} 42. Rc1 {[%emt 0:00:25]} Rd2+ {[%emt 0:01:07]} 43. Kf1 {[%emt 0:00:15] [#]} Bd4 {[%emt 0:01:02]} (43... Rbb2 $142 $1 44. Ra7+ Kf6 45. Rd7 Rxd7 46. g4 fxg4 47. Ne5 Bxe5 48. fxe5+ Kg7 49. Ke1 g3 50. Kf1 Rdd2 51. Kg1 c3 52. a4 c2 53. Kf1 Rb1 54. Ke1 Rf2 55. Rxb1 cxb1=Q#) 44. Re8 {[%emt 0:02:13]} Rh2 {[%emt 0:01:13]} (44... Rbb2 $142 45. Re7+ Kf6 46. Ne5 Kxe7 47. Nc6+ Kf6 48. Nxd4 Rxd4 49. Kg1 Rdd2 50. Kf1 c3 51. g4 fxg4 52. a3 c2 53. Ke1 Rh2 54. Kf1 Rb1 55. Kg1 Rd2 56. Rf1 Rxf1+ 57. Kxf1 c1=Q#) 45. Rxe6 {[%emt 0:01:43]} Rh1+ {[%emt 0:00:37]} 46. Kg2 {[%emt 0:00:01]} Rxc1 {[%emt 0:00:05] Quite a comeback for Black.  Weighted Error Value: White=0.70/Black=0.43} 0-1

[Event "Slovakia Open 2022"]
[Site "Bratislava"]
[Date "2022.10.01"]
[Round "7.14"]
[White "Lecky, Juraj"]
[Black "Sobek, Michal"]
[Result "1-0"]
[ECO "A45"]
[WhiteElo "2070"]
[BlackElo "2156"]
[Annotator "TA"]
[PlyCount "43"]
[EventDate "2022.09.30"]
[EventCountry "SVK"]
[SourceTitle "playchess.com"]
[Source "ChessBase"]
[SourceQuality "1"]
[TimeControl "2700+10"]

{[%evp 9,43,42,37,36,47,45,50,54,106,86,108,55,90,36,124,122,122,131,225,225,256,285,247,211,514,525,504,509,1065,1041,1003,883,1736,1661,29990,29991]} 1. d4 {[%emt 0:00:03]} Nf6 {[%emt 0:00:02]} 2. Bg5 {[%emt 0:00:04]} e6 {[%emt 0:00:05]} 3. e4 {[%emt 0:00:01]} c5 {[%emt 0:00:02]} 4. d5 {[%emt 0:00:43]} h6 {[%emt 0:00:15]} 5. Bxf6 {[%emt 0:00:21]} Qxf6 {[%emt 0:00:23]} 6. Nc3 {[%emt 0:00:03] A45: Trompowsky Attack.} a6 {[%emt 0:00:24]} 7. a4 {[%emt 0:00:55] Prevents b5. was the old line (7.Nf3).} b6 {[%emt 0:00:06]} 8. Nf3 {[%emt 0:00:08] White is slightly better.} d6 {[%emt 0:00:36]} (8... e5 $14) 9. dxe6 {[%emt 0:02:18] [#]} fxe6 $146 {[%emt 0:01:44]} ({Predecessor:} 9... Bxe6 10. Nd2 Nc6 11. Bc4 Nb4 12. O-O g6 13. Re1 Bg7 14. Bxe6 fxe6 15. e5 dxe5 {1-0 (42) Ivanisevic,I (2595)-Dragojlovic,A (2432) Zlatibor 2007}) 10. Bc4 {[%emt 0:04:21]} (10. e5 $1 $16 {[%cal Re5f6]} dxe5 11. Ne4) 10... Nd7 {[%emt 0:01:40]} 11. Qe2 {[%emt 0:04:22]} (11. O-O $16) 11... Ne5 {[%emt 0:02:10]} (11... Bb7 $14) 12. Nxe5 $16 {[%emt 0:02:06]} dxe5 {[%emt 0:00:40]} 13. O-O {[%emt 0:01:42][%cal Of2f4,Bh1f1,Bf1f3,Bf3f4][%mdl 32]} Be7 {[%emt 0:00:26] [#]} (13... Bd6 $16 {is a better defense.} 14. Rad1 Bc7) 14. f4 $1 $18 {[%emt 0:05:05][%cal Of4f5] And now f5! would win.} exf4 {[%emt 0:03:02]} 15. e5 {[%emt 0:00:02]} Qg5 {[%emt 0:02:14]} 16. h4 {[%emt 0:04:28]} (16. Qe4 $6 Rb8) 16... Qg3 {[%emt 0:04:06] [#]} (16... Qxh4 {is more resistant.} 17. Qe4 Ra7 18. Qc6+ (18. Qxf4 Qxf4 19. Rxf4 Bg5 $17) (18. Rxf4 Qg5 $18) (18. Qg6+ Kd8 $18) 18... Bd7 19. Qxb6 f3 20. Qxa7 Qd4+ 21. Rf2 Bh4) 17. Rf3 $1 {[%emt 0:00:23]} Qxh4 {[%emt 0:02:02]} 18. Qe4 $1 {[%emt 0:00:05][%csl LRa8,LRf4] Active counter play!} Rb8 {[%emt 0:01:42]} (18... Ra7 $142 19. Qc6+ Kf7) 19. Rxf4 {[%emt 0:05:13]} Qh5 {[%emt 0:01:51] [#]} 20. Bxa6 $1 {[%emt 0:02:35][%cal Bc4a6,Ba6e2,Be2h5][%mdl 544]} Bg5 {[%emt 0:04:29]} (20... Bd7 21. Be2) 21. Be2 {[%emt 0:01:16]} Bb7 {[%emt 0:01:32]} 22. Bxh5+ {[%emt 0:00:02] Weighted Error Value: White=0.09 (flawless) /Black=1.13} 1-0

[Event "Slovakia Open 2022"]
[Site "Bratislava"]
[Date "2022.10.01"]
[Round "7.15"]
[White "Hnatyshyn, Anastasiia"]
[Black "Mikulas, Dusan"]
[Result "1-0"]
[ECO "B67"]
[WhiteElo "2087"]
[BlackElo "2047"]
[Annotator "TA"]
[PlyCount "107"]
[EventDate "2022.09.30"]
[EventCountry "SVK"]
[SourceTitle "playchess.com"]
[Source "ChessBase"]
[SourceQuality "1"]
[TimeControl "2700+10"]

{[%evp 18,106,31,18,45,35,43,39,55,48,67,63,61,66,110,99,91,46,65,52,43,39,76,58,100,37,45,39,187,180,200,136,136,136,156,151,164,64,139,108,506,485,483,426,445,288,306,307,403,396,404,395,401,394,392,389,345,227,272,252,288,177,430,439,1375,1354,1162,747,1079,668,930,897,1389,1375,1375,1375,2602,1243,5373,1035,1350,834,5218,1000,29988,29989,29989,29990,29990,29991,29999]} 1. e4 {[%emt 0:00:04]} c5 {[%emt 0:00:07]} 2. Nf3 {[%emt 0:00:02]} d6 {[%emt 0:00:02]} 3. d4 {[%emt 0:00:03]} cxd4 {[%emt 0:00:02]} 4. Nxd4 {[%emt 0:00:02]} Nf6 {[%emt 0:00:02]} 5. Nc3 {[%emt 0:00:03]} Nc6 {[%emt 0:00:02]} 6. Bg5 {[%emt 0:00:12]} e6 {[%emt 0:00:14]} 7. Qd2 {[%emt 0:00:08]} a6 {[%emt 0:00:21]} 8. O-O-O {[%emt 0:00:44]} Bd7 {[%emt 0:01:16]} 9. f3 {[%emt 0:01:44]} Rc8 {[%emt 0:00:42]} 10. Kb1 {[%emt 0:01:00]} Be7 {[%emt 0:01:28] B67: Sicilian: Richter-Rauzer: 7...a6 8 0-0-0 Bd7, lines without 9 f4 Be7.} 11. g4 {[%emt 0:01:22][%cal Bg2g4,Bg4g5][%mdl 32]} b5 {[%emt 0:03:32]} 12. Be3 {[%emt 0:02:36]} Nxd4 {[%emt 0:05:14] [#] White is slightly better.} 13. Bxd4 $146 {[%emt 0:01:46]} ({Predecessor:} 13. Qxd4 O-O 14. g5 Nh5 15. f4 Qa5 16. a3 Rfd8 17. Qd2 g6 18. Nd5 Qxd2 19. Nxe7+ {1-0 (43) Oparin,G (2504)-Usmanov,V (2377) Kaliningrad 2013}) 13... b4 {[%emt 0:01:29]} 14. Ne2 {[%emt 0:00:32][%cal Bc3e2,Be2c1,Bc1b3,Bb3a5][%mdl 32] White is more active.} e5 {[%emt 0:00:40]} 15. Be3 {[%emt 0:01:37]} Qa5 {[%emt 0:03:28]} 16. g5 {[%emt 0:02:56]} Be6 {[%emt 0:00:02]} 17. Nc1 {[%emt 0:02:20]} Nd7 {[%emt 0:00:31]} 18. Nb3 {[%emt 0:02:01]} Qa4 {[%emt 0:02:31]} 19. h4 {[%emt 0:03:18]} Nc5 {[%emt 0:04:48]} 20. Bh3 {[%emt 0:02:00]} Qc6 {[%emt 0:01:56]} 21. Bxe6 {[%emt 0:01:20]} (21. Nxc5 $16 dxc5 22. Qh2) 21... Nxe6 $14 {[%emt 0:00:11]} 22. Rh2 {[%emt 0:01:09]} a5 {[%emt 0:02:48]} (22... Qc4 $14) 23. Nxa5 $18 {[%emt 0:03:31]} Qa4 {[%emt 0:00:33]} 24. Nb3 {[%emt 0:00:08]} Ra8 {[%emt 0:01:01]} 25. Nc1 {[%emt 0:01:45]} O-O {[%emt 0:00:09]} 26. h5 {[%emt 0:00:41]} Rfc8 {[%emt 0:00:11]} 27. b3 {[%emt 0:01:04]} (27. Rg2 $18) 27... Qa3 {[%emt 0:02:10] [#]} (27... Qa6 $1 $14) 28. g6 $1 $16 {[%emt 0:01:02]} Nd4 $2 {[%emt 0:01:58][%mdl 8192]} (28... Nc7 $16 {is a better chance.}) 29. Bxd4 {[%emt 0:02:41]} exd4 {[%emt 0:00:02]} 30. gxf7+ {[%emt 0:00:49]} Kxf7 {[%emt 0:01:22]} 31. Qf4+ {[%emt 0:01:20]} Bf6 {[%emt 0:02:08]} 32. Qxd6 {[%emt 0:02:26]} d3 {[%emt 0:03:44][%csl Gf6][%cal Ra3b2] [#]} 33. e5 {[%emt 0:00:42]} dxc2+ {[%emt 0:00:27]} 34. Rxc2 {[%emt 0:00:13] Chess con chili.} Rxc2 {[%emt 0:00:53]} 35. Kxc2 {[%emt 0:00:31]} Be7 {[%emt 0:00:38]} 36. Qd5+ {[%emt 0:01:34]} Kf8 {[%emt 0:00:06]} 37. Qe6 {[%emt 0:01:49] Inhibits Rc8+.} Qa7 {[%emt 0:01:09] Against Rd4} 38. Kb1 {[%emt 0:01:38]} Qc5 {[%emt 0:00:37]} 39. Qd5 {[%emt 0:00:40]} ({Don't play} 39. Rd7 Rc8 40. Qf5+ (40. Ne2 Qc2+ 41. Ka1 Re8 $18) 40... Ke8) 39... Qa7 {[%emt 0:00:03]} (39... Qxd5 40. Rxd5 Kf7) 40. Rd4 $18 {[%emt 0:00:26]} Rd8 {[%emt 0:00:13]} (40... Bg5 $142 41. a4 g6 42. hxg6 hxg6) 41. Rf4+ {[%emt 0:00:06]} Ke8 {[%emt 0:00:15]} 42. Qf7+ {[%emt 0:00:39]} Kd7 {[%emt 0:00:02]} 43. e6+ {[%emt 0:00:08]} Kc8 {[%emt 0:00:25]} 44. Rxb4 {[%emt 0:00:45]} Rf8 {[%emt 0:02:02]} 45. Rc4+ {[%emt 0:00:22]} Kb8 {[%emt 0:00:04]} 46. Qxg7 {[%emt 0:00:08] And now Qe5+ would win.} Rd8 {[%emt 0:00:20]} 47. Qxh7 {[%emt 0:00:23] aiming for h6.} Qa3 {[%emt 0:00:29]} 48. Qc2 {[%emt 0:00:25] Threatens to win with Qf5.} Qa5 {[%emt 0:00:12]} 49. Qe4 {[%emt 0:00:09] Hoping for h6.} Rd6 {[%emt 0:00:25]} 50. Ra4 {[%emt 0:00:10]} Qc5 {[%emt 0:00:12]} 51. Qa8+ {[%emt 0:00:03] White mates.} Kc7 {[%emt 0:00:02]} 52. Ra7+ {[%emt 0:00:05]} Qxa7 {[%emt 0:00:10]} 53. Qxa7+ {[%emt 0:00:03]} Kd8 {[%emt 0:00:04]} 54. Qb8# {[%emt 0:00:01] Weighted Error Value: White=0.50/Black=0.61} 1-0

[Event "Slovakia Open 2022"]
[Site "Bratislava"]
[Date "2022.10.01"]
[Round "7.16"]
[White "Bombek, Peter"]
[Black "Pasti, Zsombor"]
[Result "1/2-1/2"]
[ECO "D35"]
[WhiteElo "2083"]
[BlackElo "1884"]
[Annotator "TA"]
[PlyCount "78"]
[EventDate "2022.09.30"]
[EventCountry "SVK"]
[SourceTitle "playchess.com"]
[Source "ChessBase"]
[SourceQuality "1"]
[TimeControl "2700+10"]

{[%evp 23,78,0,8,0,27,9,25,20,45,0,24,0,16,14,17,0,25,13,24,0,0,-12,-3,-2,-2,-6,-9,-74,-70,-65,-77,-94,-98,-93,-90,-90,-76,-168,-154,-162,-65,-171,-129,-187,-94,-184,-184,-174,-173,-212,-164,-166,-158,-164,-163,-165,-75]} 1. d4 {[%emt 0:00:07]} d5 {[%emt 0:00:01]} 2. c4 {[%emt 0:00:02]} e6 {[%emt 0:00:01]} 3. Nc3 {[%emt 0:00:01]} Nf6 {[%emt 0:00:01]} 4. cxd5 {[%emt 0:00:03]} exd5 {[%emt 0:00:03]} 5. Bg5 {[%emt 0:00:03]} Be7 {[%emt 0:00:01]} 6. e3 {[%emt 0:00:02]} c6 {[%emt 0:00:02]} 7. Bd3 {[%emt 0:00:06]} Be6 {[%emt 0:00:06]} 8. Qc2 {[%emt 0:00:10]} Nbd7 {[%emt 0:00:04]} 9. Nf3 {[%emt 0:00:04]} O-O {[%emt 0:00:03]} 10. O-O {[%emt 0:00:02]} h6 {[%emt 0:00:04]} 11. Bh4 {[%emt 0:00:00]} Bg4 {[%emt 0:00:35]} 12. Bxf6 {[%emt 0:04:27]} Bxf6 {[%emt 0:00:10] [#]} 13. b4 $146 {[%emt 0:00:31][%cal Bb2b4,Bb4b5][%mdl 32] D35: Queen's Gambit Declined: Exchange Variation.} ({Predecessor:} 13. Nd2 Re8 14. h3 Be6 15. b4 a6 16. a4 g5 17. Bf5 Nf8 18. Nb3 Be7 19. Nc5 Bxc5 20. bxc5 b5 21. cxb6 Qxb6 {1-0 (59) Harasta,V (2190)-Hanuliak,S Tatranska Lomnica 1999}) 13... Qb6 {[%emt 0:01:35]} 14. Rab1 {[%emt 0:01:28]} a6 {[%emt 0:00:10] Prevents b5.} 15. a4 {[%emt 0:00:50] White has an edge.} Rac8 {[%emt 0:00:32]} 16. Qb3 {[%emt 0:00:54]} a5 {[%emt 0:00:55]} 17. b5 {[%emt 0:01:09]} (17. Rfc1 $5 {[%cal Rb4a5]}) 17... Qc7 {[%emt 0:02:44]} 18. Rfc1 {[%emt 0:06:59][%cal Oc3d5] Threatens to win with Nxd5!} Qd6 {[%emt 0:00:14]} 19. Rb2 {[%emt 0:00:39]} Be6 {[%emt 0:00:24]} 20. bxc6 {[%emt 0:01:16]} bxc6 {[%emt 0:00:08]} 21. Rcb1 {[%emt 0:03:50]} Rb8 {[%emt 0:03:48]} 22. Qa2 {[%emt 0:00:45]} Rxb2 {[%emt 0:00:10]} 23. Rxb2 {[%emt 0:00:05]} Rb8 {[%emt 0:00:10]} (23... c5 {looks sharper.} 24. Qb1 Bg4 25. Rb7 Bxf3 26. gxf3 cxd4 27. Nb5 Qe7) 24. Rxb8+ {[%emt 0:01:41]} Qxb8 {[%emt 0:00:02]} 25. Qa3 {[%emt 0:02:20]} (25. Ne2 $11) 25... Qb4 $17 {[%emt 0:02:48]} 26. Qxb4 {[%emt 0:02:02]} axb4 {[%emt 0:00:25]} 27. Nb1 {[%emt 0:04:07]} c5 {[%emt 0:00:14]} 28. dxc5 {[%emt 0:00:34]} Nxc5 {[%emt 0:00:03]} 29. Bb5 {[%emt 0:01:15]} Bf5 {[%emt 0:00:02]} 30. Nfd2 {[%emt 0:01:13]} (30. Nbd2 $17 {is a better defense.}) 30... Bd8 {[%emt 0:00:08]} 31. Bc6 {[%emt 0:00:48]} Ba5 {[%emt 0:02:46]} (31... Bc2 $19 32. Bxd5 Kf8) 32. f3 {[%emt 0:00:50]} ({White has to play} 32. Bxd5 $15 Bc2 33. Nc4) 32... b3 {[%emt 0:00:38][%cal Bb4b3,Bb3b2][%mdl 32]} 33. Bxd5 {[%emt 0:00:26] [#]} (33. e4 $17 dxe4 34. fxe4) 33... Bd3 {[%emt 0:01:12]} ({Better is} 33... Bc2 $1 $19 34. Bc4 Kf8) 34. Kf2 {[%emt 0:03:57]} (34. Bxb3 $17 {was worth a try.} Bxb1 35. Bxf7+ Kxf7 36. Nxb1) 34... b2 $19 {[%emt 0:00:34] Black is clearly better.} 35. Ba2 {[%emt 0:01:54]} Nxa4 {[%emt 0:00:02]} 36. Nc4 {[%emt 0:01:09]} Nc3 {[%emt 0:00:50]} 37. Nxc3 {[%emt 0:00:35]} Bxc3 {[%emt 0:00:37] This bishop pair is nice.} 38. Na3 {[%emt 0:00:11]} Kf8 {[%emt 0:00:06]} 39. Bb1 {[%emt 0:00:25]} Bxb1 {[%emt 0:00:30] Weighted Error Value: White=0.26 (precise) /Black=0.20 (precise)} (39... Ba6 $19 {is more deadly.} 40. e4 Bd2) 1/2-1/2

[Event "Slovakia Open 2022"]
[Site "Bratislava"]
[Date "2022.10.01"]
[Round "7.17"]
[White "Pekar, Matus"]
[Black "Chlpek, Daniel"]
[Result "0-1"]
[ECO "A45"]
[WhiteElo "1679"]
[BlackElo "2020"]
[Annotator "TA"]
[PlyCount "64"]
[EventDate "2022.09.30"]
[EventCountry "SVK"]
[SourceTitle "playchess.com"]
[Source "ChessBase"]
[SourceQuality "1"]
[TimeControl "2700+10"]

{[%evp 9,64,14,73,30,35,38,41,35,37,6,18,7,17,-16,0,-20,-9,-25,10,3,0,-8,12,-94,-79,-170,-177,-167,-172,-141,-134,-130,-154,-142,-149,-1021,-995,-966,-917,-1552,-1511,-1472,-1179,-1120,-1106,-1637,-1561,-1320,-1048,-1499,-1485,-1462,-1432,-1206,-753,-748,-722]} 1. d4 {[%emt 0:00:04]} Nf6 {[%emt 0:00:02]} 2. Nc3 {[%emt 0:00:10]} d6 {[%emt 0:00:24]} 3. Bf4 {[%emt 0:01:30]} g6 {[%emt 0:04:14]} 4. Qd2 {[%emt 0:00:26]} Nbd7 {[%emt 0:00:54]} 5. e4 {[%emt 0:02:20]} c5 {[%emt 0:02:24]} (5... e5 $11 6. dxe5 (6. Bg5 exd4 7. Qxd4 Bg7 $11) 6... dxe5) 6. d5 {[%emt 0:01:42] A45: Trompowsky Attack.} Bg7 {[%emt 0:00:10]} 7. Bh6 {[%emt 0:00:30]} Bxh6 {[%emt 0:00:03]} 8. Qxh6 {[%emt 0:00:02] White is slightly better.} Qa5 {[%emt 0:00:10] [#]} 9. Qe3 $146 {[%emt 0:02:41]} (9. a3 $5 {[%cal Rg1f3]}) ({Predecessor:} 9. Qd2 a6 10. f3 b5 11. Nce2 Qxd2+ 12. Kxd2 Nb6 13. Nf4 g5 14. Nfh3 h6 15. b3 {0-1 (57) Boldt,M (1669)-Bausch,T (1953) Dortmund 2011}) 9... a6 {[%emt 0:00:08]} 10. Nf3 {[%emt 0:01:43]} b5 {[%emt 0:00:46]} 11. Nd2 {[%emt 0:00:18]} Bb7 {[%emt 0:01:34]} 12. f4 {[%emt 0:00:31]} O-O-O {[%emt 0:01:58]} 13. Be2 {[%emt 0:02:53]} e6 {[%emt 0:02:08]} 14. dxe6 {[%emt 0:02:20]} fxe6 {[%emt 0:00:02][%cal Bf7e6,Be6d5,Bd5e4,Be4e3][%mdl 32] ...d5 is the strong threat.} 15. O-O {[%emt 0:00:11]} d5 {[%emt 0:00:12]} 16. exd5 {[%emt 0:02:31]} (16. a4 $1 $11 {remains equal.} b4 17. Nd1 (17. Nb3 Qc7 $17)) 16... exd5 $17 {[%emt 0:00:04]} 17. Qd3 {[%emt 0:07:50]} (17. Qf2 $17 {was worth a try.}) 17... Rhe8 $19 {[%emt 0:00:58]} 18. Bf3 {[%emt 0:00:30]} Qb6 $36 {[%emt 0:02:49][%mdl 2048] [#] And now ...c4+ would win. Black has strong initiative.} 19. Ne2 {[%emt 0:03:02]} ({Not} 19. Nxd5 $2 Nxd5 20. c4 Ne3 $19) 19... Ne4 {[%emt 0:01:00]} 20. Bxe4 {[%emt 0:01:12]} dxe4 {[%emt 0:00:02]} 21. Qe3 {[%emt 0:00:08]} Nf6 {[%emt 0:00:23] aiming for ...Ng4.} 22. c4 $2 {[%emt 0:04:11][%mdl 8192] This move loses the game for White.} (22. Nb3 $17) 22... Rd3 {[%emt 0:00:13] Black is clearly winning.} 23. Qf2 {[%emt 0:02:38]} Rxd2 {[%emt 0:00:16]} 24. h3 {[%emt 0:00:22]} e3 {[%emt 0:00:05]} 25. Qe1 {[%emt 0:00:20]} Qc6 {[%emt 0:00:10][%csl Gb7][%cal Rc6g2] [#]} 26. Rf3 {[%emt 0:00:14]} Qd6 {[%emt 0:00:11]} 27. Rg3 {[%emt 0:00:15]} Nh5 {[%emt 0:01:55]} 28. Rg4 {[%emt 0:00:47]} Rd8 {[%emt 0:00:27] Strongly threatening ...Qd3.} 29. Nc3 {[%emt 0:00:43]} b4 {[%emt 0:00:25]} 30. Nd5 {[%emt 0:00:18]} Bxd5 {[%emt 0:00:13]} 31. cxd5 {[%emt 0:00:08]} Qxd5 {[%emt 0:00:10][%cal Oh5f4] ( -> ...Nxf4!)} 32. Qxe3 {[%emt 0:00:05]} Qd4 {[%emt 0:00:01] Weighted Error Value: White=1.03/Black=0.49} 0-1